Cogmind - Beta 10.2 *** ADVENTURER MODE // 2021.01.14 @ 14:24:17 Player: Frosst Result: Destroyed by G-34 Mercenary with Small Laser Performance ------------- Evolutions (1) 500 Regions Visited (2) 400 Robots Destroyed (8) 40 Value Destroyed (219) 219 Prototype IDs (0) 0 Alien Tech Used (0) 0 Bonus (0) 0 TOTAL SCORE: 1159 Bonus ------- None Cogmind --------- Core Integrity 0/400 Matter 274/300 Energy 100/100 System Corruption 0% Temperature Cool (6) Movement Core (100) Ox1 Location -9/Materials Parts ------- > --- POWER (1) -------- (None) > --- PROPULSION (3) --- (None) > --- UTILITY (3) ------ Small Storage Unit > --- WEAPON (2) ------- (None) > --- INVENTORY (6) ---- (None) Peak State ------------ > --- POWER ------------ Ion Engine > --- PROPULSION ------- Aluminum Leg Aluminum Leg > --- UTILITY ---------- Small Storage Unit > --- WEAPON ----------- EM Pulse Gun Light Assault Rifle > --- INVENTORY -------- Light Ion Engine Wheel Light Assault Rifle [Rating: 6] Favorites ----------- Power Ion Engine Engine Ion Engine Propulsion Aluminum Leg Treads Light Treads Leg Aluminum Leg Wheel Compact Wheel Utility Small Storage Unit Storage Small Storage Unit Weapon Light Assault Rifle Energy Gun EM Pulse Gun Ballistic Gun Light Assault Rifle Build | -11 -10 -9 ------- Run | Scr Mat Mat Slots Evolved 2 | . . 2 Power . | . . . Propulsion 1 | . . 1 Utility 1 | . . 1 Weapon . | . . . Parts Attached 15 | 8 . 7 Power 3 | 1 . 2 Engine 3 | 1 . 2 Core . | . . . Reactor . | . . . Propulsion 8 | 4 . 4 Treads 1 | 1 . . Leg 2 | 2 . . Wheel 5 | 1 . 4 Hover . | . . . Flight . | . . . Utility 1 | 1 . . Device . | . . . Storage 1 | 1 . . Processor . | . . . Hackware . | . . . Protection . | . . . Artifact . | . . . Weapon 3 | 2 . 1 Energy Gun 1 | 1 . . Energy Cannon . | . . . Ballistic Gun 2 | 1 . 1 Ballistic Cannon . | . . . Launcher . | . . . Special Weapon . | . . . Impact Weapon . | . . . Slashing Weapon . | . . . Piercing Weapon . | . . . Special Melee Weapon . | . . . Unidentified Prototypes . | . . . Parts Lost 11 | . 1 10 Power 2 | . . 2 Propulsion 6 | . . 6 Utility . | . . . Weapon 3 | . 1 2 Highest Loss Streak 5 | . 1 5 Average Slot Usage (%) 60 | . 81 33 Engine 10 | . 14 4 Leg 17 | . 28 3 Wheel 4 | . . 10 Storage 12 | . 14 11 Energy Gun 5 | . 10 . Ballistic Gun 9 | . 14 3 Naked Turns . | . . . Heaviest Build 12 | 12 12 10 Greatest Support 32 | 20 20 32 Greatest Overweight (x) 1 | 1 . 1 Average Overweight (x) . | . . . Largest Inventory Capacity 6 | 6 6 6 Average Capacity 5 | 5 6 6 Most Carried 6 | 6 3 4 Average Carried 2 | 3 3 1 Final Capacity 6 | 6 6 6 Final Carried 3 | 3 3 . Class Distribution -------------------- 100% | Mutant Dominant Class ---------------- Mutant | -10/Materials Mutant | -9/Materials Resources | -11 -10 -9 ----------- Run | Scr Mat Mat Matter Collected 252 | 69 183 . Remotely . | . . . Salvage Created 298 | . 183 115 Parts 22 | . 13 9 Haulers Intercepted . | . . . Recyclers Shooed . | . . . Parts Field Recycled . | . . . Retrieved Matter . | . . . Parts Self-Destructed . | . . . Prevented . | . . . Kills | -11 -10 -9 ------- Run | Scr Mat Mat Combat Hostiles Destroyed 7 | . 5 2 Melee 1 | . . 1 Guns 6 | . 5 1 Classes Destroyed 4 | . 3 1 Watcher 1 | . 1 . Swarmer 3 | . 3 . Grunt 3 | . 2 1 Sentry 1 | . . 1 Best Kill Streak 3 | . 3 1 Combat Bots Only 3 | . 3 1 Max Kills in Single Turn 1 | . 1 1 Gunslinging . | . . . Exploded . | . . . Melee 1 | . . 1 Uniques/NPCs Destroyed . | . . . Combat | -11 -10 -9 -------- Run | Scr Mat Mat Damage Taken 1256 | . 284 972 Core 460 | . 54 406 Absorbed by Shields . | . . . Core Remaining (%) 89 | 100 78 . Volleys Fired 40 | . 26 14 Largest 2 | . 2 2 Hottest 60 | . 60 40 Shots Fired 58 | . 41 17 Gun 58 | . 41 17 Cannon . | . . . Launcher . | . . . Special . | . . . Kinetic 43 | . 26 17 Thermal . | . . . Explosive . | . . . Electromagnetic 15 | . 15 . Robot Hit Streak 14 | . 14 12 Robot Miss Streak 1 | . 1 1 Penetration Max . | . . . Secondary Targets 2 | . 2 . Max Gunslinging Chain 1 | . 1 . Shots Hit Robots 51 | . 36 15 Core Hits 29 | . 11 18 Critical Hits . | . . . Critical Kills . | . . . Critical Parts Destroyed . | . . . Melee Attacks . | . . . Impact . | . . . Slashing . | . . . Piercing . | . . . Sneak Attacks . | . . . Combat Hostiles . | . . . Follow-up Attacks . | . . . Damage Inflicted 409 | . 235 174 Guns 372 | . 235 137 Cannons . | . . . Explosions . | . . . Melee . | . . . Ramming 37 | . . 37 Kinetic 267 | . 130 137 Thermal . | . . . Explosive . | . . . Electromagnetic 105 | . 105 . Impact . | . . . Slashing . | . . . Piercing . | . . . Highest Corruption . | . . . Average Corruption . | . . . Corruption Purged . | . . . Overload Shots . | . . . Overflow Damage . | . . . Projectiles . | . . . Explosions . | . . . Melee . | . . . Knockbacks . | . . . Impact . | . . . Kinetic . | . . . Secondary . | . . . Self-Inflicted Damage 14 | . . 14 Shots . | . . . Rammed 18 | . . 18 Targets Rammed 18 | . . 18 Kicked . | . . . Crushed . | . . . Highest Temperature 56 | . 56 39 Average Temperature 21 | . 24 12 Received Heat Transfer 765 | . 114 651 Siege Activations . | . . . Robots Corrupted . | . . . Combat Hostiles . | . . . Parts Fried . | . . . Impact Corruptions . | . . . Robots Melted . | . . . Combat Hostiles . | . . . Parts Melted . | . . . Heat Transferred . | . . . Parts Sabotaged . | . . . Parts Stolen . | . . . Parts Stripped . | . . . Power Chain Reactions . | . . . Missiles Intercepted . | . . . Alert | -11 -10 -9 ------- Run | Scr Mat Mat Peak Influence 117 | . 117 57 Initial 42 | . . 42 Average 33 | . 63 24 Maximum Alert Level . | . . . Low Security (%) 100 | 100 100 100 Level 1 . | . . . Level 2 . | . . . Level 3 . | . . . Level 4 . | . . . Level 5 . | . . . High Security . | . . . Max Security . | . . . Squads Dispatched 2 | . . 2 Investigation 1 | . . 1 Extermination . | . . . Reinforcement 1 | . . 1 Assault . | . . . Garrison . | . . . Intercept . | . . . Construction Impeded . | . . . Haulers Reinforced . | . . . Stealth | -11 -10 -9 --------- Run | Scr Mat Mat Distress Signals 1 | . 1 . Communications Jammed . | . . . Distress Signals . | . . . Times Spotted 12 | . 7 5 Peak Tracking Total 4 | . 3 4 Tactical Retreats . | . . . Traps | -11 -10 -9 ------- Run | Scr Mat Mat Traps Triggered . | . . . Indirectly . | . . . Trap Hack Attempts . | . . . Triggered . | . . . Disarmed . | . . . Reprogrammed . | . . . Reused . | . . . Traps Extracted . | . . . Installed . | . . . Triggered . | . . . Machines | -11 -10 -9 ---------- Run | Scr Mat Mat Machines Disabled . | . . . Max in Single Turn . | . . . Machines Sabotaged . | . . . Garrisons Compromised . | . . . Overloaded Fab Kills . | . . . Fab Network Shutdowns . | . . . Hacking | -11 -10 -9 --------- Run | Scr Mat Mat Machines Accessed . | . . . Terminals . | . . . Fabricators . | . . . Repair Stations . | . . . Recycling Units . | . . . Scanalyzers . | . . . Garrison Access . | . . . Total Hacks . | . . . Successful . | . . . Failed . | . . . Catastrophic . | . . . Database Lockouts . | . . . Manual . | . . . Terminals . | . . . Fabricators . | . . . Repair Stations . | . . . Recycling Units . | . . . Scanalyzers . | . . . Garrison Access . | . . . Terminal Hacks . | . . . Fabricator Hacks . | . . . Repair Station Hacks . | . . . Recycling Unit Hacks . | . . . Scanalyzer . | . . . Garrison Access Hacks . | . . . Unauthorized Hacks . | . . . Terminals . | . . . Fabricators . | . . . Repair Stations . | . . . Recycling Units . | . . . Scanalyzers . | . . . Garrison Access . | . . . Data Cores Recovered . | . . . Used . | . . . Hacking Detections . | . . . Full Trace Events . | . . . Feedback Events . | . . . Feedback Blocked . | . . . Robot Schematics Acquired . | . . . Robots Built . | . . . Matter . | . . . Time . | . . . Total Robot Build Rating . | . . . Part Schematics Acquired . | . . . Parts Built . | . . . Matter . | . . . Time . | . . . Total Part Build Rating . | . . . Parts Repaired . | . . . Time . | . . . Parts Recycled . | . . . Recycled Matter . | . . . Retrieved Matter . | . . . Retrieved Components . | . . . Parts Scanalyzed . | . . . Part Schematics Acquired . | . . . Parts Damaged . | . . . Bothacking | -11 -10 -9 ------------ Run | Scr Mat Mat Used RIF Installer . | . . . Robots Hacked . | . . . Non-combat . | . . . Combat . | . . . Robot Hacks Applied . | . . . Relay Couplers Released . | . . . Robots Rewired . | . . . Allies Hacked . | . . . Hacks Repelled . | . . . Allies | -11 -10 -9 -------- Run | Scr Mat Mat Total Allies . | . . . Largest Group . | . . . Highest-Rated Group . | . . . Highest-Rated Ally . | . . . Total Orders . | . . . Ally Attacks . | . . . Total Damage . | . . . Kills . | . . . Allies Corrupted . | . . . Allies Melted . | . . . Intel | -11 -10 -9 ------- Run | Scr Mat Mat Robot Analysis Total . | . . . Derelict Logs Recovered . | . . . Drone Launches . | . . . Drone Recoveries . | . . . Exploration | -11 -10 -9 ------------- Run | Scr Mat Mat Turns Passed 575 | 163 234 178 Spaces Moved 418 | 151 144 123 Core 67 | 58 . 9 Treads 2 | 2 . . Legs 248 | 89 144 15 Wheels 101 | 2 . 99 Hover . | . . . Flight . | . . . Fastest Speed 50 | 50 120 80 Average Speed 105 | 97 120 99 Slowest Speed 160 | 160 120 120 Overloaded Moves . | . . . Propulsion Burnouts . | . . . Robots Hopped . | . . . Cave-ins Triggered . | . . . Exploration Rate (%) 11 | 6 23 4 Regions Visited 2 Branch Regions . Pre-discovered Areas . | . . . Known Exits Taken . | . . . Unknown Exits Taken 2 | 1 1 . Scrap Searched . | . . . Spaces Dug . | . . . Terrain Destroyed . | . . . Melee . | . . . Projectile . | . . . AOE . | . . . Terrain Rammed . | . . . Walls Destroyed . | . . . Machines Disabled . | . . . Actions | -11 -10 -9 --------- Run | Scr Mat Mat Total 500 | 166 169 165 Wait . | . . . Move 416 | 150 143 123 Hop . | . . . Pick Up 9 | 6 . 3 Fast Attach 4 | 4 . . Attach 10 | 4 . 6 Detach 1 | 1 . . Swap 1 | . . 1 Drop 1 | 1 . . Fire 40 | . 26 14 Melee . | . . . Ram 18 | . . 18 Kick . | . . . Crush . | . . . Escape Stasis . | . . . Rewire . | . . . Trap . | . . . Miscellaneous . | . . . Route ------- -11/Scrapyard -10/Materials -9/Materials History --------- Turn | Location | Event 8 | -11/Scrapyard | Discovered new exit (range 15) 164 | -11/Scrapyard | Entered Materials 317 | -10/Materials | Build established: Mutant 358 | -10/Materials | Discovered new exit (range 15) 398 | -10/Materials | Entered another Materials area 398 | -9/Materials | Evolved 2 slots: Propulsion x1, Utility x1 478 | -9/Materials | Lost 5 parts (1p2n2w) 506 | -9/Materials | Core integrity fell below 50% 524 | -9/Materials | Core integrity fell below 20% 545 | -9/Materials | Lost 3 parts (3n) 576 | -9/Materials | Destroyed by G-34 Mercenary with Small Laser Last Messages --------------- 00458_ Acquired Com. Wheel. 00464_ ALERT: Hostiles spotted, dispatching reinforcements to Terminal M009. 00475_ Slammed into G-34 Mercenary. 00476_ Slammed into G-47 Trooper. 00480_ Slammed into G-34 Mercenary. 00484_ Slammed into G-47 Trooper. 00485_ Wheel destroyed. 00492_ Com. Wheel destroyed. 00500_ Slammed into G-47 Trooper. 00501_ Slammed into G-34 Mercenary. 00502_ U-05 Engineer lays Concrete. 00503_ Slammed into G-47 Trooper. 00514_ Com. Wheel destroyed. 00528_ U-05 Engineer lays Concrete. 00564_ Ion Engine destroyed. 00570_ Slammed into G-47 Trooper. 00572_ Com. Wheel destroyed. 00573_ Slammed into G-47 Trooper. 00576_ G-47 Trooper destroyed. Map ----- +----------------------------------------------------+ | | | | | | | | | | | | | | | | | | | | | | | ???????????????????????????????????? | | ???????????????????????????????????? | | ???????????????????????????????????? | | ???????????????????????????????????? | | ???????????????????????????????????? | | ???????????????????????????????????? | | ???????????????????????????????????? | | ???????????????????????????????????? | | ???????????????????????????????????? | | ???????????????????????????????????? | | ??????????????????????????########## | | ??????????????????????##### # | | ??????????????????????# # """" # | | ??????????????????????# [# """" # | | ??????????????????????# !@# """" # | | ??????????????????????# =*g # | | ??????????????????????# # """" # | | ??????????????????????# # """" # | | ??????????????????????# # """" # | | ??????????????????????# # # | | ??????????????????????# ########## | | ??????????????????????# # #?? | | ??????????????????????# + #?? | | ??????????????????????# # #?? | | ??????????????????????# # #?? | | ??????????????????????# # #?? | | ??????????????????????# # #?? | | ??????????????????????# ########?? | | ??????????????????????#w #????????? | | ??????????????????????+ #????????? | | ??????????????????????#* #????????? | | ??????????????????????#%=[#????????? | | ??????????????????????#!!%#????????? | | ?????????????????????? !!*????????? | | ?????????????????????? ????????? | | ????????????????????? +???????? | | ????????????????????? #???????? | | ????????????????????## #???????? | | ?????????????????????## ##???????? | +----------------------------------------------------+ Best States ------------- Heat Dissipation 28 Energy Generation 10 Energy Capacity 250 Matter Stores 260 Matter Capacity 300 Sight Range 16 Terrain Scan Density 10 Resistance: KI 20 Resistance: TH 20 Resistance: EX 20 Resistance: EM 20 Resistance: I 20 Resistance: S 20 Resistance: P 20 Evasion (%) 50 Recoil Reduction 1 Offensive Hacking 10 Item Schematics ----------------- None Robot Schematics ------------------ None Fabricated ------------ Nothing Alien Tech Used ----------------- None Achievements -------------- None Challenges ------------ None Game ------ Seed RagnarokPortableSheargun Manual? 0 Play Time 00:09:04 Cumulative 1.4 hours Start 2021.01.14 @ 14:07:08 End 2021.01.14 @ 14:24:17 Sessions 1 Manual Loads 0 Difficulty Adventurer Special Mode None Game No. 6 Rogue 2 Adventurer 4 Explorer 0 Win Type - Total 0 Types 0/0/0/0/0/0/0/0/0 Lore% 0 Gallery% 2 Achievement% 2 Wizard Run 0 Options --------- ASCII 0 Keyboard 0 Movement Mouse Keybinds 0 Fullscreen 2 Font 18/SmallcapsGlow Map View 76x50 Tactical HUD 1 Map Filters NONE Filters NONE Steam 1 RUN: c5b93f0b-4e21-48dd-9e41-9e38ac8c7445